fUST/lending_fUST_20241107
["ID","MTS","AMOUNT","RATE_DAILY","PERIOD"]
[341510579,1730937044847,-500.0,0.00027397,2]
[341510580,1730937044859,-500.0,0.00027397,2]
[341510581,1730937044869,-570.65,0.00027397,2]
[341510582,1730937044879,-508.30980439,0.00027397,2]
[341510583,1730937044888,-500.0,0.00027397,2]
[341510584,1730937044899,-500.0,0.00027397,2]
[341510585,1730937044908,-500.05141281,0.00027397,2]
[341510586,1730937044918,-500.0,0.00027397,2]
[341510587,1730937044930,-500.0,0.00027397,2]
[341510588,1730937044940,-503.31196164,0.00027397,2]
[341510589,1730937044951,-500.0,0.00027397,2]
[341510590,1730937044961,-506.04410297,0.00027397,2]
[341510591,1730937044971,-500.0,0.00027397,2]
[341510592,1730937044981,-500.0,0.00027397,2]
[341510593,1730937044991,-500.0,0.00027397,2]
[341510594,1730937045006,-500.0,0.00027397,2]
[341510595,1730937045017,-500.0,0.00027397,2]
[341510596,1730937045028,-500.0,0.00027397,2]
[341510597,1730937045038,-500.0,0.00027397,2]
[341510598,1730937045048,-637.58448502,0.00027397,2]
[341510599,1730937045059,-500.0,0.00027397,2]
[341510600,1730937045068,-500.0,0.00027397,2]
[341510601,1730937045078,-500.0,0.00027397,2]
[341510602,1730937045089,-554.74076083,0.00027397,2]
[341510603,1730937045099,-491.29,0.0002747,10]
[341510604,1730937045108,-16415.96052679,0.0002748,2]
[341510605,1730937045118,-400.0,0.0002749,2]
[341510606,1730937045128,-600.0,0.00027499,2]
[341510607,1730937045138,-10177.15819304,0.000275,2]
[341510608,1730937045148,-16415.96052679,0.00027571,2]
[341510609,1730937045157,-151.0,0.00027571,7]
[341510610,1730937045167,-151.0,0.00027571,7]
[341510611,1730937045177,-151.0,0.00027571,2]
[341510612,1730937045188,-151.0,0.00027571,7]
[341510613,1730937045198,-151.0,0.00027571,7]
[341510614,1730937045207,-240.105448,0.00027571,7]
[341510615,1730937045217,-240.105448,0.00027571,7]
[341510616,1730937045226,-151.0,0.00027571,7]
[341510617,1730937045236,-151.0,0.00027571,7]
[341510618,1730937045245,-247.746189,0.00027571,7]
[341510619,1730937045255,-151.0,0.00027571,7]
[341510620,1730937045265,-151.0,0.00027571,7]
[341510621,1730937045274,-151.0,0.00027571,7]
[341510622,1730937045284,-159.751,0.0002764,14]
[341510623,1730937045293,-420.0,0.00027668,2]
[341510624,1730937045303,-152.86523768,0.00027671,2]
[341510625,1730937045312,-150.02,0.00027671,2]
[341510626,1730937045322,-208.027202,0.00027671,2]
[341510627,1730937045332,-500.0,0.00027671,2]
[341510628,1730937045342,-500.0,0.00027671,2]
[341510629,1730937045352,-419.26290027,0.00027671,2]
[341510630,1730937045362,-500.0,0.00027671,2]
[341510631,1730937045372,-500.0,0.00027671,2]
[341510632,1730937045383,-500.0,0.00027671,2]
[341510633,1730937045393,-500.0,0.00027671,2]
[341510634,1730937045403,-500.0,0.00027671,2]
[341510635,1730937045413,-596.78664689,0.00027671,2]
[341510636,1730937045423,-500.0,0.00027671,2]
[341510637,1730937045433,-500.0,0.00027671,2]
[341510638,1730937045444,-500.0,0.00027671,2]
[341510639,1730937045454,-500.0,0.00027671,2]
[341510640,1730937045463,-500.0,0.00027671,2]
[341510641,1730937045473,-500.0,0.00027671,2]
[341510642,1730937045484,-500.0,0.00027671,2]
[341510643,1730937045494,-250.00000939,0.00027671,2]
[341510644,1730937045504,-500.0,0.00027671,2]
[341510645,1730937045516,-500.0,0.00027671,2]
[341510646,1730937045525,-500.0,0.00027671,2]
[341510647,1730937045535,-500.0,0.00027671,2]
[341510648,1730937045545,-569.80461547,0.00027671,2]
[341510649,1730937045555,-522.69608231,0.00027671,2]
[341510650,1730937045566,-500.0,0.00027671,2]
[341510651,1730937045577,-534.40606514,0.00027671,2]
[341510652,1730937045587,-500.0,0.00027671,2]
[341510653,1730937045598,-500.0,0.00027671,2]
[341510654,1730937045609,-529.31191293,0.00027671,2]
[341510655,1730937045619,-500.0,0.00027671,2]
[341510656,1730937045630,-500.0,0.00027671,2]
[341510657,1730937045639,-500.0,0.00027671,2]
[341510658,1730937045649,-500.0,0.00027671,2]
[341510659,1730937045659,-500.0,0.00027671,2]
[341510660,1730937045669,-216.90505056,0.00027671,2]
[341510661,1730937045679,-500.0,0.00027671,2]
[341510662,1730937045689,-500.0,0.00027671,2]
[341510663,1730937045699,-500.0,0.00027671,2]
[341510664,1730937045708,-500.0,0.00027671,2]
[341510665,1730937045717,-500.0,0.00027671,2]
[341510666,1730937045727,-500.0,0.00027671,2]
[341510667,1730937045739,-500.0,0.00027671,2]
[341510668,1730937045750,-500.0,0.00027671,2]
[341510669,1730937045759,-463.35861698,0.00027671,2]
[341510671,1730937045771,-500.0,0.00027671,2]
[341510672,1730937045783,-243.18181578,0.00027671,2]
[341510673,1730937045793,-500.0,0.00027671,2]
[341510675,1730937045804,-500.0,0.00027671,2]
[341510677,1730937045816,-500.0,0.00027671,2]
[341510679,1730937045826,-500.0,0.00027671,2]
[341510681,1730937045837,-500.0,0.00027671,2]
[341510682,1730937045848,-151.0,0.00027671,7]
[341510683,1730937045860,-151.0,0.00027671,7]
[341510684,1730937045872,-151.0,0.00027671,7]
[341510685,1730937045883,-151.0,0.00027671,7]
[341510686,1730937045892,-151.0,0.00027671,2]
[341510687,1730937045903,-151.0,0.00027671,2]
[341510688,1730937045914,-500.0,0.00027671,2]
[341510689,1730937045928,-500.0,0.00027671,2]
[341510690,1730937045939,-500.0,0.00027671,2]
[341510691,1730937045950,-500.0,0.00027671,2]
[341510692,1730937045961,-500.0,0.00027671,2]
[341510693,1730937045972,-151.0,0.00027671,7]
[341510694,1730937045982,-151.0,0.00027671,7]
[341510695,1730937045991,-305.1765523,0.00027671,2]
[341510696,1730937046004,-151.0,0.00027671,7]
[341510697,1730937046018,-151.0,0.00027671,7]
[341510698,1730937046028,-624.19,0.00027671,2]
[341510699,1730937046038,-500.0,0.00027671,2]
[341510700,1730937046048,-500.0,0.00027671,2]
[341510701,1730937046058,-500.0,0.00027671,2]
[341510702,1730937046068,-1089.48,0.00027671,2]
[341510703,1730937046078,-500.0,0.00027671,2]
[341510704,1730937046088,-500.0,0.00027671,2]
[341510705,1730937046098,-500.0,0.00027671,2]
[341510706,1730937046108,-500.0,0.00027671,2]
[341510707,1730937046120,-500.0,0.00027671,2]
[341510708,1730937046130,-705.95,0.00027671,2]
[341510709,1730937046140,-500.0,0.00027671,2]
[341510710,1730937046151,-500.0,0.00027671,2]
[341510711,1730937046160,-500.0,0.00027671,2]
[341510712,1730937046171,-500.0,0.00027671,2]
[341510713,1730937046182,-500.0,0.00027671,2]
[341510714,1730937046193,-500.0,0.00027671,2]
[341510715,1730937046203,-652.73,0.00027671,2]
[341510716,1730937046213,-500.0,0.00027671,2]
[341510717,1730937046224,-500.0,0.00027671,2]
[341510718,1730937046234,-500.0,0.00027671,2]
[341510719,1730937046244,-500.0,0.00027671,2]
[341510720,1730937046255,-500.0,0.00027671,2]
[341510721,1730937046265,-3321.83,0.00027671,2]
[341510722,1730937046274,-500.0,0.00027671,2]
[341510723,1730937046284,-500.0,0.00027671,2]
[341510724,1730937046296,-500.0,0.00027671,2]
[341510725,1730937046306,-1433.99,0.00027671,2]
[341510726,1730937046317,-500.0,0.00027671,2]
[341510727,1730937046327,-500.0,0.00027671,2]
[341510728,1730937046337,-510.97689468,0.00027671,2]
[341510729,1730937046347,-1539.42,0.00027671,2]
[341510730,1730937046357,-500.0,0.00027671,2]
[341510731,1730937046366,-240.105448,0.00027671,7]
[341510733,1730937046376,-4080.77,0.00027671,2]
[341510734,1730937046386,-240.105448,0.00027671,7]
[341510735,1730937046395,-500.0,0.00027671,2]
[341510736,1730937046405,-500.0,0.00027671,2]
[341510737,1730937046414,-240.105448,0.00027671,7]
[341510738,1730937046425,-240.105448,0.00027671,7]
[341510740,1730937046437,-552.2,0.00027671,2]
[341510741,1730937046446,-500.0,0.00027671,2]
[341510742,1730937046457,-500.0,0.00027671,2]
[341510744,1730937046466,-596.94,0.00027671,2]
[341510745,1730937046475,-500.0,0.00027671,2]
[341510746,1730937046486,-841.22,0.00027671,2]
[341510748,1730937046496,-500.0,0.00027671,2]
[341510750,1730937046506,-764.58,0.00027671,2]
[341510751,1730937046516,-398.94383911,0.00027671,2]
[341510752,1730937046526,-500.0,0.00027671,2]
[341510753,1730937046536,-7479.43,0.00027671,2]
[341510754,1730937046546,-500.0,0.00027671,2]
[341510755,1730937046555,-500.0,0.00027671,2]
[341510756,1730937046641,-500.0,0.00027671,2]
[341510757,1730937046659,-151.0,0.00027671,7]
[341510758,1730937046669,-151.0,0.00027671,7]
[341510759,1730937046679,-500.0,0.00027671,2]
[341510760,1730937046690,-500.0,0.00027671,2]
[341510761,1730937046700,-151.0,0.00027671,7]
[341510762,1730937046709,-151.0,0.00027671,7]
[341510763,1730937046718,-1520.84,0.00027671,2]
[341510764,1730937046728,-500.0,0.00027671,2]
[341510765,1730937046737,-500.0,0.00027671,2]
[341510766,1730937046746,-500.0,0.00027671,2]
[341510767,1730937046755,-500.0,0.00027671,2]
[341510768,1730937046764,-500.0,0.00027671,2]
[341510769,1730937046774,-500.0,0.00027671,2]
[341510770,1730937046782,-500.0,0.00027671,2]
[341510771,1730937046792,-629.49,0.00027671,2]
[341510772,1730937046801,-536.93,0.00027671,2]
[341510773,1730937046810,-500.0,0.00027671,2]
[341510774,1730937046819,-500.0,0.00027671,2]
[341510775,1730937046828,-500.0,0.00027671,2]
[341510776,1730937046838,-151.0,0.00027671,7]
[341510777,1730937046848,-151.0,0.00027671,7]
[341510778,1730937046860,-500.0,0.00027671,2]
[341510779,1730937046869,-500.0,0.00027671,2]
[341510780,1730937046878,-511.37396268,0.00027671,2]
[341510781,1730937046887,-500.0,0.00027671,2]
[341510782,1730937046897,-769.75,0.00027671,2]
[341510783,1730937046906,-500.0,0.00027671,2]
[341510784,1730937046915,-500.0,0.00027671,2]
[341510785,1730937046925,-570.65,0.00027671,2]
[341510786,1730937046937,-500.0,0.00027671,2]
[341510787,1730937046947,-500.0,0.00027671,2]
[341510788,1730937046956,-500.0,0.00027671,2]
[341510789,1730937046965,-500.0,0.00027671,2]
[341510790,1730937046975,-632.57554905,0.00027671,2]
[341510791,1730937046984,-500.0,0.00027671,2]
[341510792,1730937046993,-568.78471521,0.00027671,2]
[341510793,1730937047002,-500.0,0.00027671,2]
[341510794,1730937047011,-500.0,0.00027671,2]
[341510795,1730937047020,-151.0,0.00027671,7]
[341510796,1730937047029,-500.0,0.00027671,2]
[341510797,1730937047038,-151.0,0.00027671,7]
[341510798,1730937047048,-500.0,0.00027671,2]
[341510799,1730937047057,-200.694,0.00027688,2]
[341510800,1730937047066,-1135.0,0.00027688,2]
[341510801,1730937047075,-529.0,0.00027688,2]
[341510802,1730937047085,-2393.0,0.00027688,2]
[341510803,1730937047094,-150.0,0.00027688,2]
[341510804,1730937047103,-385.51,0.000277,14]
[341510805,1730937047112,-494.49379726,0.00027774,2]
[341510806,1730937047121,-396.0,0.0002788,19]
[341510807,1730937047130,-500.0,0.00027938,2]
[341510808,1730937047140,-501.78865778,0.00027942,5]
[341510809,1730937047149,-199.9,0.00027945,2]
[341510810,1730937047158,-500.0,0.00027945,2]
[341510811,1730937047167,-500.0,0.00027945,2]
[341510812,1730937047176,-500.0,0.00027945,2]
[341510813,1730937047187,-524.41756331,0.00027945,2]
[341510814,1730937047195,-500.0,0.00027945,2]
[341510815,1730937047204,-196.893845,0.00027945,2]
[341510816,1730937047213,-500.0,0.00027945,2]
[341510817,1730937047222,-500.0,0.00027945,2]
[341510818,1730937047231,-500.0,0.00027945,2]
[341510819,1730937047241,-500.0,0.00027945,2]
[341510820,1730937047249,-401.33662302,0.00027945,2]
[341510821,1730937047259,-500.0,0.00027945,2]
[341510822,1730937047268,-500.0,0.00027945,2]
[341510823,1730937047277,-500.0,0.00027945,2]
[341510824,1730937047286,-500.0,0.00027945,2]
[341510825,1730937047295,-500.0,0.00027945,2]
[341510826,1730937047305,-500.0,0.00027945,2]
[341510827,1730937047314,-516.13223049,0.00027945,2]
[341510828,1730937047323,-500.0,0.00027945,2]
[341510829,1730937047332,-500.0,0.00027945,2]
[341510830,1730937047342,-500.0,0.00027945,2]
[341510831,1730937047351,-500.0,0.00027945,2]
[341510832,1730937047361,-500.0,0.00027945,2]
[341510833,1730937047370,-500.0,0.00027945,2]
[341510834,1730937047379,-450.34254966,0.00027945,2]
[341510835,1730937047388,-500.0,0.00027945,2]
[341510836,1730937047398,-547.07593284,0.00027945,2]
[341510837,1730937047408,-500.0,0.00027945,2]
[341510838,1730937047417,-500.0,0.00027945,2]
[341510839,1730937047428,-500.0,0.00027945,2]
[341510840,1730937047440,-500.0,0.00027945,2]
[341510841,1730937047449,-151.0,0.00027945,7]
[341510842,1730937047459,-151.0,0.00027945,7]
[341510843,1730937047468,-151.0,0.00027945,7]
[341510844,1730937047477,-151.0,0.00027945,7]
[341510845,1730937047486,-176.003426,0.00027945,7]
[341510846,1730937047495,-151.0,0.00027945,2]
[341510847,1730937047504,-500.0,0.00027945,2]
[341510848,1730937047514,-500.0,0.00027945,2]
[341510849,1730937047524,-526.33027285,0.00027945,2]
[341510850,1730937047536,-500.0,0.00027945,2]
[341510851,1730937047545,-500.0,0.00027945,2]
[341510852,1730937047554,-151.0,0.00027945,7]
[341510853,1730937047563,-151.0,0.00027945,7]
[341510854,1730937047573,-151.0,0.00027945,7]
[341510855,1730937047582,-295.610503,0.00027945,7]
[341510856,1730937047591,-624.19,0.00027945,2]
[341510857,1730937047599,-500.0,0.00027945,2]
[341510858,1730937047609,-500.0,0.00027945,2]
[341510859,1730937047618,-500.0,0.00027945,2]
[341510860,1730937047627,-1089.48,0.00027945,2]
[341510861,1730937047637,-500.0,0.00027945,2]
[341510862,1730937047646,-500.0,0.00027945,2]
[341510863,1730937047655,-500.0,0.00027945,2]
[341510864,1730937047664,-500.0,0.00027945,2]
[341510865,1730937047674,-1000.0,0.00027945,28]
[341510866,1730937047683,-1000.0,0.00027945,28]
[341510867,1730937047693,-1000.0,0.00027945,28]
[341510868,1730937047703,-1000.0,0.00027945,28]
[341510869,1730937047713,-1000.0,0.00027945,28]
[341510870,1730937047722,-1000.0,0.00027945,28]
[341510871,1730937047732,-1000.0,0.00027945,28]
[341510872,1730937047741,-1000.0,0.00027945,28]
[341510873,1730937047750,-1000.0,0.00027945,28]
[341510874,1730937047758,-1000.0,0.00027945,28]
[341510875,1730937047767,-1000.0,0.00027945,28]
[341510876,1730937047777,-1000.0,0.00027945,28]
[341510877,1730937047786,-1000.0,0.00027945,28]
[341510878,1730937047797,-500.0,0.00027945,2]
[341510879,1730937047807,-1000.0,0.00027945,28]
[341510880,1730937047816,-1000.0,0.00027945,28]
[341510881,1730937047826,-1000.0,0.00027945,28]
[341510882,1730937047837,-705.95,0.00027945,2]
[341510883,1730937047848,-1000.0,0.00027945,28]
[341510884,1730937047862,-500.0,0.00027945,2]
[341510885,1730937047871,-1000.0,0.00027945,28]
[341510886,1730937047882,-1000.0,0.00027945,28]
[341510887,1730937047894,-415.9368116,0.00027945,28]
[341510888,1730937047958,-584.0631884,0.00027945,28]
[341510889,1730937047968,-1000.0,0.00027945,28]
[341510890,1730937047979,-1000.0,0.00027945,28]
[341510891,1730937047990,-375.22502425,0.00027945,28]
[341510892,1730937048084,-345.00673985,0.00027945,28]
[341510894,1730937266630,1169.27083333,0.0002083,2]
[341510896,1730937349055,164.653798,0.00013973,2]
[341510909,1730937878624,1169.27083333,0.0002083,2]
[341510928,1730938168107,1000.0,0.00032665,120]
[341510950,1730938232313,-166.405829,0.00024359,2]
[341510951,1730938232323,-232.379262,0.00024686,2]
[341510952,1730938232336,-1026.180777,0.00024739,2]
[341510953,1730938232346,-1169.27083333,0.00024739,2]
[341510954,1730938232355,-300.0,0.00024747,2]
[341510955,1730938232364,-300.0,0.00024747,2]
[341510956,1730938232373,-13536.96629275,0.00024748,2]
[341510957,1730938232386,-709.90522066,0.00024748,2]
[341510958,1730938232405,-10653.12848659,0.00024748,2]
[341510959,1730938232414,-1123.8737197,0.00025032,2]
[341510960,1730938232423,-162.213846,0.00025632,2]
[341510961,1730938232433,-162.213846,0.0002576,2]
[341510962,1730938232442,-164.653798,0.00026274,2]
[341510963,1730938232452,-420.0,0.00026816,2]
[341510964,1730938232462,-569.76941443,0.00027001,2]
[341510965,1730938232471,-257.0,0.00027221,2]
[341510966,1730938232481,-472.98,0.00027387,3]
[341510967,1730938232491,-360.67,0.00027387,10]
[341510968,1730938232502,-617.61,0.00027387,10]
[341510969,1730938232512,-630.9997979,0.00027395,2]
[341510970,1730938232522,-178.42044073,0.00027396,2]
[341510971,1730938232533,-235.58899517,0.00027396,2]
[341510972,1730938232542,-422.83527072,0.00027397,2]
[341510973,1730938232552,-572.14785551,0.00027397,2]
[341510974,1730938232564,-500.0,0.00027397,2]
[341510975,1730938232574,-500.0,0.00027397,2]
[341510976,1730938232584,-509.48107672,0.00027397,2]
[341510977,1730938232593,-500.0,0.00027397,2]
[341510978,1730938232605,-500.0,0.00027397,2]
[341510979,1730938232614,-500.0,0.00027397,2]
[341510980,1730938232624,-500.0,0.00027397,2]
[341510981,1730938232633,-160.53468892,0.00027397,2]
[341510982,1730938232642,-500.0,0.00027397,2]
[341510983,1730938232651,-500.0,0.00027397,2]
[341510984,1730938232661,-500.0,0.00027397,2]
[341510985,1730938232672,-500.0,0.00027397,2]
[341510986,1730938232681,-500.0,0.00027397,2]
[341510987,1730938232690,-535.64728762,0.00027397,2]
[341510988,1730938232700,-500.0,0.00027397,2]
[341510989,1730938232710,-500.0,0.00027397,2]
[341510990,1730938232719,-500.0,0.00027397,2]
[341510991,1730938232728,-393.44000256,0.00027397,2]
[341510992,1730938232738,-52.02614374,0.00027397,2]
[341510997,1730938238679,-447.97385626,0.00027397,2]
[341510999,1730938238690,-500.0,0.00027397,2]
[341511001,1730938238699,-500.0,0.00027397,2]
[341511003,1730938238709,-500.0,0.00027397,2]
[341511004,1730938238718,-500.0,0.00027397,2]
[341511006,1730938238728,-500.0,0.00027397,2]
[341511008,1730938238737,-500.0,0.00027397,2]
[341511010,1730938238749,-512.1569902,0.00027397,2]
[341511013,1730938238759,-500.0,0.00027397,2]
[341511014,1730938238768,-500.0,0.00027397,2]
[341511017,1730938238778,-500.0,0.00027397,2]
[341511019,1730938238791,-500.0,0.00027397,2]
[341511020,1730938238802,-209.56943152,0.00027397,2]
[341511022,1730938238811,-500.0,0.00027397,2]
[341511024,1730938238820,-500.0,0.00027397,2]
[341511026,1730938238830,-500.0,0.00027397,2]
[341511028,1730938238839,-500.0,0.00027397,2]
[341511030,1730938238848,-500.0,0.00027397,2]
[341511032,1730938238862,-500.0,0.00027397,2]
[341511034,1730938238872,-500.0,0.00027397,2]
[341511037,1730938238882,-546.16,0.00027397,2]
[341511038,1730938238891,-500.0,0.00027397,2]
[341511040,1730938238901,-500.0,0.00027397,2]
[341511042,1730938238910,-500.0,0.00027397,2]
[341511044,1730938238920,-598.33,0.00027397,2]
[341511046,1730938238930,-376.58239924,0.00027397,2]
[341511048,1730938238940,-500.0,0.00027397,2]
[341511050,1730938238949,-500.0,0.00027397,2]
[341511052,1730938238958,-500.0,0.00027397,2]
[341511054,1730938238967,-500.0,0.00027397,2]
[341511056,1730938238977,-953.29,0.00027397,2]
[341511058,1730938238990,-289.34485246,0.00027397,2]
[341511060,1730938238999,-500.0,0.00027397,2]
[341511062,1730938239008,-500.0,0.00027397,2]
[341511063,1730938239018,-637.22025614,0.00027397,2]
[341511065,1730938239027,-500.0,0.00027397,2]
[341511067,1730938239038,-617.71,0.00027397,2]
[341511069,1730938239047,-500.03,0.00027397,2]
[341511071,1730938239056,-508.73711328,0.00027397,2]
[341511073,1730938239066,-500.0,0.00027397,2]
[341511075,1730938239076,-184.92980784,0.00027397,2]
[341511077,1730938239085,-547.2,0.00027397,2]
[341511079,1730938239095,-500.0,0.00027397,2]
[341511081,1730938239105,-500.0,0.00027397,2]
[341511083,1730938239113,-691.96529306,0.00027397,2]
[341511085,1730938239130,-79.15470694,0.00027397,2]
[341511087,1730938239139,-500.0,0.00027397,2]
[341511089,1730938239148,-187.30912772,0.00027397,2]
[341511091,1730938239157,-3045.01,0.00027397,2]
[341511093,1730938239167,-500.0,0.00027397,2]
[341511095,1730938239176,-3740.7,0.00027397,2]
[341511097,1730938239186,-500.0,0.00027397,2]
[341511099,1730938239195,-177.95053109,0.00027397,2]
[341511101,1730938239205,-1314.49,0.00027397,2]
[341511103,1730938239214,-500.0,0.00027397,2]
[341511105,1730938239223,-500.0,0.00027397,2]
[341511107,1730938239233,-1411.13,0.00027397,2]
[341511109,1730938239242,-410.34024774,0.00027397,2]
[341511111,1730938239251,-500.0,0.00027397,2]
[341511113,1730938239260,-500.0,0.00027397,2]
[341511115,1730938239275,-500.0,0.00027397,2]
[341511117,1730938239284,-700.86,0.00027397,2]
[341511119,1730938239295,-514.27630853,0.00027397,2]
[341511121,1730938239304,-183.3006615,0.00027397,2]
[341511123,1730938239317,-7137.9793385,0.00027397,2]
[341511125,1730938239327,-1394.1,0.00027397,2]
[341511127,1730938239337,-500.0,0.00027397,2]
[341511129,1730938239349,-500.0,0.00027397,2]
[341511131,1730938239359,-500.0,0.00027397,2]
[341511133,1730938239368,-500.0,0.00027397,2]
[341511135,1730938239377,-519.45323124,0.00027397,2]
[341511137,1730938239386,-500.0,0.00027397,2]
[341511139,1730938239396,-500.0,0.00027397,2]
[341511141,1730938239406,-500.0,0.00027397,2]
[341511143,1730938239416,-500.0,0.00027397,2]
[341511145,1730938239425,-500.0,0.00027397,2]
[341511147,1730938239435,-500.0,0.00027397,2]
[341511149,1730938239444,-577.03,0.00027397,2]
[341511151,1730938239454,-500.0,0.00027397,2]
[341511153,1730938239463,-512.35594706,0.00027397,2]
[341511155,1730938239473,-500.0,0.00027397,2]
[341511157,1730938239482,-500.0,0.00027397,2]
[341511159,1730938239491,-500.0,0.00027397,2]
[341511160,1730938239501,-705.6,0.00027397,2]
[341511163,1730938239511,-500.0,0.00027397,2]
[341511165,1730938239521,-295.60550543,0.00027397,2]
[341511166,1730938239530,-500.0,0.00027397,2]
[341511168,1730938239541,-500.0,0.00027397,2]
[341511170,1730938239551,-523.1,0.00027397,2]
[341511172,1730938239561,-500.0,0.00027397,2]
[341511174,1730938239570,-500.0,0.00027397,2]
[341511176,1730938239580,-500.0,0.00027397,2]
[341511178,1730938239590,-500.0,0.00027397,2]
[341511180,1730938239599,-500.0,0.00027397,2]
[341511182,1730938239609,-249.77597777,0.00027397,2]
[341511185,1730938239622,-250.22402223,0.00027397,2]
[341511187,1730938239631,-500.0,0.00027397,2]
[341511189,1730938239640,-500.0,0.00027397,2]
[341511191,1730938239651,-500.0,0.00027397,2]
[341511193,1730938239660,-500.0,0.00027397,2]
[341511195,1730938239670,-500.0,0.00027397,2]
[341511206,1730938239768,-500.0,0.00027397,2]
[341511208,1730938239778,-201.08604214,0.00027397,2]
[341511210,1730938239788,-500.0,0.00027397,2]
[341511211,1730938239797,-500.0,0.00027397,2]
[341511213,1730938239807,-500.0,0.00027397,2]
[341511215,1730938239817,-500.0,0.00027397,2]
[341511216,1730938239826,-331.1046299,0.00027571,2]
[341511217,1730938239836,-166.6138097,0.00027647,30]
[341511219,1730938239846,-153.0,0.00027647,30]
[341511220,1730938239855,-153.0,0.00027647,30]
[341511221,1730938239864,-153.0,0.00027647,30]
[341511222,1730938239874,-153.0,0.00027647,30]
[341511223,1730938239884,-153.0,0.00027647,30]
[341511224,1730938239894,-153.0,0.00027647,30]
[341511225,1730938239903,-153.0,0.00027647,30]
[341511226,1730938239912,-153.0,0.00027647,30]
[341511228,1730938239921,-153.0,0.00027647,30]
[341511230,1730938239931,-153.0,0.00027647,30]
[341511231,1730938239940,-153.0,0.00027647,30]
[341511233,1730938239949,-514.67,0.00027661,10]
[341511234,1730938239960,-500.0,0.00027671,2]
[341511235,1730938239969,-500.0,0.00027671,2]
[341511236,1730938239978,-500.0,0.00027671,2]
[341511238,1730938239988,-500.0,0.00027671,2]
[341511240,1730938239998,-500.0,0.00027671,2]
[341511241,1730938240009,-500.0,0.00027671,2]
[341511242,1730938240019,-500.0,0.00027671,2]
[341511243,1730938240028,-500.0,0.00027671,2]
[341511244,1730938240040,-533.96755371,0.00027671,2]
[341511245,1730938240050,-500.0,0.00027671,2]
[341511246,1730938240060,-500.0,0.00027671,2]
[341511247,1730938240070,-364.68935204,0.00027671,2]
[341511248,1730938240083,-135.31064796,0.00027671,2]
[341511249,1730938240093,-500.0,0.00027671,2]
[341511250,1730938240102,-532.0,0.00027671,2]
[341511251,1730938240112,-500.0,0.00027671,2]
[341511252,1730938240122,-500.0,0.00027671,2]
[341511253,1730938240131,-500.0,0.00027671,2]
[341511254,1730938240140,-500.0,0.00027671,2]
[341511255,1730938240150,-240.35898731,0.00027671,2]
[341511256,1730938240159,-500.0,0.00027671,2]
[341511257,1730938240169,-500.0,0.00027671,2]
[341511258,1730938240178,-500.0,0.00027671,2]
[341511259,1730938240187,-500.0,0.00027671,2]
[341511260,1730938240196,-500.0,0.00027671,2]
[341511261,1730938240206,-500.0,0.00027671,2]
[341511262,1730938240215,-500.0,0.00027671,2]
[341511263,1730938240225,-500.0,0.00027671,2]